bitfinex/quotes_ETHUSD_20251015
["timestamp","ask_amount","ask_price","bid_price","bid_amount"]
[1760545112110,0.2368,3990.9,3990.2,0.1159]
[1760545112283,0.2368,3990.9,3989.4,10.13717566]
[1760545112284,0.2368,3990.9,3990.8,2.50576325]
[1760545112486,0.001,3990.9,3990.8,2.50576325]
[1760545113011,0.001,3990.9,3990.8,2.53082088]
[1760545113212,0.001,3990.9,3990.8,2.50576325]
[1760545113414,0.001,3990.9,3990.0,0.1159]
[1760545113614,0.001,3990.9,3990.8,2.50576325]
[1760545113816,0.2368,3990.9,3990.8,2.50576325]
[1760545114337,0.001,3990.9,3990.8,5.25802088]
[1760545114502,0.001,3991.3,3991.2,4.86711212]
[1760545114850,0.001,3991.3,3991.2,17.99444878]
[1760545115152,0.001,3991.3,3991.2,18.35904878]
[1760545115343,0.001,3991.3,3991.2,14.73528778]
[1760545115527,0.001,3991.3,3991.2,7.47511212]
[1760545115732,0.001,3991.3,3991.2,4.59811212]
[1760545115915,0.001,3991.3,3991.2,18.83398612]
[1760545116245,0.001,3991.3,3991.2,9.36242912]
[1760545116419,0.001,3991.3,3991.2,7.20611212]
[1760545117547,0.001,3991.3,3991.2,4.59811212]
[1760545117756,0.001,3991.3,3991.2,7.20611212]
[1760545117903,0.001,3991.3,3991.2,11.59838212]
[1760545118103,0.001,3991.3,3991.2,4.59811212]
[1760545118456,0.001,3991.3,3991.2,4.23351212]
[1760545118959,0.001,3991.3,3991.2,2.50551212]
[1760545119252,0.4567,3991.3,3991.2,2.50551212]
[1760545119752,0.001,3991.3,3991.2,2.50551212]
[1760545120113,0.001,3991.3,3991.2,2.53056724]
[1760545120414,0.4567,3991.3,3990.1,2.50615658]
[1760545120619,0.4557,3991.2,3990.8,2.50574709]
[1760545120840,0.2238,3990.9,3990.7,2.50581442]
[1760545121119,0.2238,3990.9,3990.4,1.728]
[1760545121120,0.4557,3990.8,3990.4,1.728]
[1760545121460,0.4557,3990.7,3990.6,2.5058871]
[1760545121767,0.2238,3990.9,3990.8,2.50576325]
[1760545121942,0.6795,3990.9,3990.8,2.50576325]
[1760545122126,0.6795,3990.9,3990.5,2.50595069]
[1760545122334,0.2238,3990.9,3990.8,2.50576325]
[1760545123367,0.6795,3990.9,3989.8,1.728]
[1760545123553,0.2238,3990.9,3990.7,2.50580622]
[1760545123755,0.4557,3990.8,3989.8,1.728]
[1760545124062,0.4557,3990.8,3990.7,2.50582604]
[1760545124577,0.4557,3990.8,3990.5,2.50594662]
[1760545124578,2.50587106,3990.7,3989.9,1.728]
[1760545124778,0.6336,3990.5,3988.1,2.87205258]
[1760545125070,0.4557,3990.4,3989.7,2.50640915]
[1760545125273,0.2238,3989.8,3988.8,1.728]
[1760545125471,0.4557,3989.7,3988.4,1.747]
[1760545125674,0.4557,3989.7,3989.5,2.50653167]
[1760545125833,0.2238,3989.8,3989.7,2.50645411]
[1760545126037,0.2238,3989.8,3989.6,2.50650958]
[1760545126237,0.4557,3989.7,3989.5,2.50657188]
[1760545126466,0.2238,3989.8,3988.9,1.728]
[1760545126772,0.2238,3989.8,3988.7,1.728]
[1760545126773,0.2238,3989.8,3989.7,2.50645411]
[1760545127073,0.6795,3989.8,3989.6,2.5065167]
[1760545127226,0.4557,3989.7,3989.4,2.50658882]
[1760545127429,0.4557,3989.6,3989.1,2.5067811]
[1760545127736,0.4557,3989.5,3988.7,1.728]
[1760545127933,0.2238,3989.8,3989.5,2.50653324]
[1760545128272,0.4557,3989.7,3989.3,2.50670508]
[1760545128478,0.2238,3990.1,3988.6,0.3646]
[1760545128771,0.2238,3990.1,3989.9,2.50628552]
[1760545129011,0.4557,3990.0,3989.9,2.50632847]
[1760545129355,0.2238,3990.1,3990.0,2.50626566]
[1760545129558,0.2238,3990.4,3990.1,2.5061495]
[1760545129758,0.6795,3990.4,3990.1,2.5061495]
[1760545129958,0.4557,3990.3,3989.9,0.002]
[1760545130179,0.2238,3990.4,3989.9,0.002]
[1760545130472,0.2238,3990.4,3990.2,2.50609669]
[1760545130667,0.4557,3990.8,3990.4,2.50600933]
[1760545130960,0.2238,3990.6,3990.5,2.50595163]
[1760545131503,0.6795,3990.6,3990.1,2.50614541]
[1760545131659,0.4557,3990.5,3990.1,2.50615382]
[1760545131860,0.4557,3990.4,3990.2,2.50612299]
[1760545132280,0.4557,3990.4,3989.9,0.002]
[1760545132281,0.2238,3990.6,3989.9,0.002]
[1760545132493,0.4557,3990.3,3989.9,2.50831734]
[1760545132656,0.4557,3990.3,3990.1,2.50614773]
[1760545133058,0.4557,3990.3,3990.0,2.50625757]
[1760545133365,0.4557,3990.3,3990.2,2.50614004]
[1760545133571,0.2238,3990.6,3990.2,2.50614004]
[1760545133777,0.4557,3990.5,3990.2,2.50614004]
[1760545133977,0.2238,3990.6,3990.2,2.50614004]
[1760545134179,0.4557,3990.5,3990.1,2.50618862]
[1760545134390,0.4603,3990.4,3989.9,0.002]
[1760545134592,0.4603,3990.4,3990.2,2.50613613]
[1760545134793,0.4603,3990.4,3989.9,0.002]
[1760545135099,0.4603,3990.3,3989.9,0.002]
[1760545135298,0.2238,3990.6,3989.9,0.002]
[1760545135504,0.2238,3990.6,3990.0,2.50624426]
[1760545135707,0.2238,3990.6,3990.1,0.02506202]
[1760545135912,0.2238,3990.9,3990.2,2.50614004]
[1760545136195,0.4613,3991.3,3990.8,2.50573165]
[1760545136382,0.4613,3991.3,3990.9,0.025057]
[1760545136588,0.4613,3991.3,3990.9,2.50566239]
[1760545136789,0.4603,3991.2,3990.9,2.50566239]
[1760545137003,0.4603,3991.2,3990.5,2.50594222]
[1760545137185,0.2318,3990.6,3989.9,0.002]
[1760545137387,0.4603,3990.5,3989.9,0.002]
[1760545137562,0.4603,3990.5,3990.1,2.5061808]
[1760545137766,0.2318,3990.6,3989.9,0.002]
[1760545138177,0.2318,3990.9,3989.9,0.002]
[1760545138376,0.4603,3990.7,3989.9,2.50832148]
[1760545138575,2.50576644,3990.8,3989.9,2.5082718]
[1760545138576,2.50590479,3990.6,3989.9,2.5082718]
[1760545138875,2.50611997,3990.3,3989.9,0.002]
[1760545139094,2.50602385,3990.4,3989.9,0.002]
[1760545139295,0.4603,3990.2,3989.9,0.002]
[1760545139498,0.4603,3990.7,3990.2,2.50612561]
[1760545139671,0.2318,3990.9,3990.2,0.0250614]
[1760545139870,0.2318,3990.9,3990.5,2.50594625]
[1760545140172,0.6921,3990.9,3990.6,2.5058531]
[1760545140374,0.2318,3990.9,3990.7,2.50576753]
[1760545140808,0.001,3991.3,3990.7,0.02505826]
[1760545140992,0.001,3991.3,3990.8,0.02505763]
[1760545141192,0.001,3991.3,3991.2,2.50551212]
[1760545142074,0.001,3991.3,3991.2,2.53056724]
[1760545142591,0.001,3991.3,3991.2,7.20611212]
[1760545142792,0.001,3991.3,3991.2,8.72333576]
[1760545142999,0.001,3991.3,3991.2,11.96393576]
[1760545143369,0.001,3991.3,3991.2,9.50279376]
[1760545143602,0.001,3991.3,3991.2,11.86566176]
[1760545143781,0.001,3991.3,3991.2,7.96506076]
[1760545144006,0.001,3991.3,3991.2,13.38466176]
[1760545144210,0.001,3991.3,3991.2,7.20511212]
[1760545144812,0.001,3991.3,3991.2,4.59811212]
[1760545145028,0.001,3991.3,3991.2,7.23016724]
[1760545145255,0.001,3991.3,3991.2,7.83871212]
[1760545145410,0.001,3991.3,3991.2,4.23351212]
[1760545145600,0.001,3991.3,3991.2,7.23016724]
[1760545145800,0.001,3991.3,3991.2,26.90401478]
[1760545146000,0.001,3991.3,3991.2,22.40900678]
[1760545146299,0.001,3991.3,3991.2,19.58277078]
[1760545146521,0.001,3991.3,3991.2,22.18977078]
[1760545147037,0.001,3991.3,3991.2,27.72321978]
[1760545147739,0.001,3991.3,3991.2,25.11621978]
[1760545147928,0.001,3991.3,3991.2,18.17361778]
[1760545148236,0.001,3991.3,3991.2,20.76273478]
[1760545148534,0.001,3991.3,3991.2,6.84051212]
[1760545149497,0.001,3991.3,3991.2,7.20511212]
[1760545149807,0.001,3991.3,3991.2,21.71860378]
[1760545150003,0.001,3991.3,3991.2,24.32560378]
[1760545150203,0.001,3991.3,3991.2,21.71860378]
[1760545150439,0.001,3991.3,3991.2,24.32560378]
[1760545150620,0.001,3991.3,3991.2,15.36888778]
[1760545150822,0.001,3991.3,3991.2,27.98453478]
[1760545151021,0.001,3991.3,3991.2,20.32867478]
[1760545151226,0.001,3991.3,3991.2,22.93467478]
[1760545151437,0.001,3991.3,3991.2,20.32867478]
[1760545151665,0.001,3991.3,3991.2,29.53012378]
[1760545152160,0.001,3993.0,3992.1,2.50494727]
[1760545152161,1e-08,3992.2,3992.1,2.50494727]
[1760545152362,1e-08,3992.2,3992.1,4.36574727]
[1760545152524,1e-08,3992.2,3992.1,6.97174727]
[1760545152726,1e-08,3992.2,3992.1,7.96994727]
[1760545153024,1e-08,3992.2,3992.1,15.17143427]
[1760545153221,1e-08,3992.2,3992.1,11.42688427]
[1760545153648,1e-08,3992.2,3992.1,14.03288427]
[1760545153856,1e-08,3992.2,3992.1,8.46777927]
[1760545154034,1e-08,3992.2,3992.1,11.07377927]
[1760545154367,1e-08,3992.2,3992.1,4.23294727]
[1760545154725,0.44980001,3992.2,3992.1,2.50494727]
[1760545155146,1e-08,3992.2,3992.1,2.50494727]
[1760545155346,0.44980001,3992.2,3992.1,2.50494727]
[1760545155731,1e-08,3992.2,3992.1,2.50494727]
[1760545155930,0.44980001,3992.2,3992.1,2.50494727]
[1760545156464,0.44980001,3992.2,3992.0,1.728]
[1760545156663,0.4498,3992.1,3992.0,2.50498963]
[1760545157163,1e-08,3992.2,3992.1,2.50494727]
[1760545157666,1e-08,3992.2,3992.1,4.39079674]
[1760545157827,1e-08,3992.2,3992.1,4.36574727]
[1760545158030,1e-08,3992.2,3992.1,4.73034727]
[1760545158264,1e-08,3992.2,3992.1,4.36574727]
[1760545158464,1e-08,3992.2,3992.1,4.23294727]
[1760545159155,1e-08,3992.2,3992.1,6.83894727]
[1760545159962,1e-08,3992.2,3992.1,4.23294727]
[1760545160745,0.44980001,3992.2,3992.1,2.50494727]
[1760545161470,1e-08,3992.2,3992.1,2.52999674]
[1760545161965,1e-08,3992.2,3992.1,2.50494727]
[1760545164632,0.44980001,3992.2,3992.1,2.50494727]
[1760545164856,1e-08,3992.2,3992.1,2.50494727]
[1760545165866,0.40080001,3992.6,3992.5,2.5046963]
[1760545167869,0.40080001,3992.6,3991.7,1.728]
[1760545168068,0.40080001,3992.6,3992.4,2.50471931]
[1760545168267,0.4498,3992.5,3992.4,2.50471931]
[1760545168473,0.4498,3992.5,3991.6,1.728]
[1760545168674,0.4498,3992.5,3991.3,1.728]
[1760545168993,0.4498,3992.5,3992.4,2.50475904]
[1760545170564,0.4498,3992.5,3991.9,2.5050208]
[1760545170904,0.4498,3992.4,3990.9,2.5076409]
[1760545171106,0.4498,3992.3,3990.9,0.002]
[1760545171309,0.2144,3991.0,3990.9,2.50769707]
[1760545171473,2.9546746,3992.3,3990.9,2.50769707]
[1760545171474,0.2144,3991.7,3991.4,2.50534093]
[1760545171673,0.2144,3991.7,3991.6,2.50526104]
[1760545172309,0.2144,3991.7,3991.5,2.53035545]
[1760545172477,0.4498,3991.6,3990.9,0.002]
[1760545172684,0.4498,3991.6,3991.0,2.50563435]
[1760545173006,0.4498,3991.5,3991.4,2.50538658]
[1760545173163,0.2144,3991.7,3991.6,2.50526104]
[1760545173369,0.2144,3991.7,3991.0,2.50563768]
[1760545173707,0.2144,3991.7,3991.6,2.50526104]
[1760545174008,0.2144,3991.7,3991.4,2.50538451]
[1760545174009,0.4498,3992.6,3991.5,0.02505323]
[1760545174231,0.4498,3992.6,3992.0,2.50495972]
[1760545174405,4.23257512,3992.7,3992.0,2.50495972]
[1760545174589,0.4498,3992.6,3992.1,2.50492419]
[1760545174911,0.4498,3992.6,3991.0,2.605]
[1760545174912,0.4498,3992.5,3990.9,0.002]
[1760545175086,0.2144,3991.0,3990.9,2.50770046]
[1760545175313,0.2144,3991.0,3990.9,0.002]
[1760545175314,0.6642,3991.0,3990.9,0.002]
[1760545177226,0.2341,3991.1,3990.9,0.002]
[1760545177580,0.2341,3991.4,3991.3,2.50544935]
[1760545177780,0.2341,3991.6,3991.3,2.5054484]
[1760545178098,0.6837,3991.6,3991.3,2.5054484]
[1760545178399,0.4496,3991.5,3991.4,2.50538658]
[1760545178606,0.2341,3991.6,3991.4,2.50538658]
[1760545178902,0.6837,3991.6,3991.4,2.50538658]
[1760545179107,0.6837,3991.6,3991.5,2.50532381]
[1760545179276,0.4496,3992.4,3991.4,0.02505386]
[1760545179719,0.2144,3992.8,3991.6,1.728]
[1760545180019,0.4496,3992.7,3991.5,2.50532381]
[1760545180179,0.2144,3992.8,3991.6,1.728]
[1760545180377,0.2144,3992.8,3991.7,2.50519828]
[1760545180592,0.664,3992.8,3992.4,2.5047079]
[1760545180820,0.664,3992.8,3991.8,2.50513552]
[1760545181108,0.664,3992.8,3992.6,2.50463079]
[1760545181477,0.4496,3992.7,3992.2,2.50484241]
[1760545181713,0.4496,3992.6,3991.4,1.728]
[1760545181913,0.4496,3992.5,3992.0,2.50499775]
[1760545182115,0.4496,3992.4,3992.0,2.50500698]
[1760545182311,0.001,3993.0,3992.1,0.15784947]
[1760545182556,0.2341,3992.9,3992.5,2.50469416]
[1760545183049,0.001,3992.6,3992.5,2.50469416]
[1760545185216,0.001,3992.6,3992.5,2.52974112]
[1760545185426,0.001,3992.6,3991.8,2.50513552]
[1760545185625,0.001,3992.6,3991.3,2.1436]
[1760545185847,0.001,3992.6,3992.5,2.5046963]
[1760545186348,0.4506,3992.6,3992.5,2.5046963]
[1760545186951,0.4506,3992.6,3991.8,2.50511239]
[1760545187249,0.001,3992.6,3992.4,2.50475333]
[1760545187450,0.001,3992.6,3992.4,2.50470026]
[1760545187748,0.001,3992.6,3992.5,2.5046963]
[1760545188250,0.001,3992.6,3992.0,2.50496158]
[1760545188455,0.001,3992.6,3992.4,2.50474653]
[1760545188758,0.001,3992.6,3992.5,2.5046963]
[1760545189253,0.4506,3992.6,3991.3,0.002]
[1760545189553,0.001,3992.6,3991.6,1.728]
[1760545189741,0.001,3992.6,3991.4,0.4136]
[1760545189942,0.001,3992.6,3992.3,2.50482178]
[1760545190147,0.4496,3992.5,3992.3,2.50482178]
[1760545190544,0.001,3992.6,3992.4,2.50475904]
[1760545190853,0.001,3992.6,3992.5,2.5046963]
[1760545191225,0.001,3992.6,3991.8,2.50510723]
[1760545191226,0.4506,3992.6,3992.1,2.50489532]
[1760545191419,0.4496,3992.5,3991.3,0.002]
[1760545191752,0.4496,3992.5,3992.1,2.50490728]
[1760545191961,0.4496,3992.5,3992.1,2.50489502]
[1760545192144,0.4496,3992.4,3992.1,2.50494166]
[1760545192453,0.4496,3992.4,3992.2,2.50485344]
[1760545192626,0.4496,3992.4,3992.1,2.50493592]
[1760545192826,0.001,3992.6,3992.2,2.50482345]
[1760545193055,0.001,3992.6,3991.3,0.002]
[1760545193255,0.001,3992.6,3991.6,2.50522331]
[1760545193558,0.001,3992.6,3991.3,0.4156]
[1760545193559,0.001,3992.6,3992.4,2.50474064]
[1760545193864,0.001,3992.6,3992.5,2.5046963]
[1760545199040,0.001,3992.6,3992.3,2.5047608]
[1760545199267,0.001,3992.6,3992.5,2.5046963]
[1760545199440,0.4354,3992.6,3992.2,2.50487668]
[1760545199645,0.4344,3992.5,3992.3,2.50477546]
[1760545199844,0.4344,3992.4,3991.3,0.002]
[1760545200032,0.4344,3992.4,3992.2,2.50486619]
[1760545200233,0.001,3992.6,3992.1,0.002]
[1760545200544,0.001,3992.6,3992.4,2.50470627]
[1760545200863,0.4344,3992.5,3992.1,0.002]
[1760545201061,0.4344,3992.4,3992.1,0.002]
[1760545201369,0.001,3992.6,3992.3,2.50478404]
[1760545201666,0.001,3992.6,3992.5,2.5046963]
[1760545202227,0.001,3992.6,3992.1,0.002]
[1760545202550,0.4344,3992.5,3992.1,0.002]
[1760545202952,0.001,3992.6,3992.1,0.002]
[1760545203146,0.001,3992.6,3992.5,2.5046963]
[1760545204373,0.001,3992.6,3992.5,2.52974326]
[1760545204533,0.001,3992.6,3992.5,2.5046963]
[1760545206166,0.001,3992.6,3992.1,0.002]
[1760545206167,0.4753,3992.6,3992.1,0.002]
[1760545206367,0.4743,3992.5,3992.1,2.50694397]
[1760545206670,0.4743,3992.4,3992.1,0.002]
[1760545206876,0.001,3992.6,3992.1,0.002]
[1760545206877,0.4743,3992.3,3992.1,0.002]
[1760545207076,4.86648452,3992.2,3992.1,0.002]
[1760545207439,5.34078452,3992.2,3992.1,0.002]
[1760545208772,2.2023,3992.2,3992.1,0.002]
[1760545209355,4.70718452,3992.2,3992.1,0.002]
[1760545209741,0.001,3992.6,3992.1,0.002]
[1760545210075,0.4743,3992.5,3992.1,0.002]
[1760545210771,0.001,3992.6,3992.2,2.50488452]
[1760545211159,0.001,3992.6,3992.1,0.002]
[1760545211365,0.001,3992.6,3992.1,2.50690322]
[1760545211776,0.001,3992.6,3992.2,2.50487292]
[1760545211978,0.001,3992.6,3992.1,2.50692982]
[1760545212182,0.001,3992.6,3992.1,0.002]
[1760545212689,0.001,3992.6,3992.5,2.5046963]
[1760545213088,0.001,3992.6,3992.5,2.52974326]
[1760545213289,0.001,3992.6,3992.5,2.9182963]
[1760545213493,0.001,3992.6,3992.5,2.94334326]
[1760545213694,1e-08,3993.1,3993.0,2.50438266]
[1760545213879,1e-08,3993.1,3993.0,4.25742648]
[1760545214187,0.2256,3995.2,3993.3,2.3616]
[1760545214497,0.4743,3995.6,3993.3,2.3616]
[1760545214498,0.2256,3995.4,3993.5,1.728]
[1760545214796,0.2256,3995.4,3994.6,2.50337864]
[1760545214997,0.2256,3995.4,3994.4,2.50349747]
[1760545215288,0.2256,3995.4,3994.3,2.50353321]
[1760545215289,0.2256,3994.7,3994.3,2.50353321]
[1760545215456,2.50311293,3995.1,3993.7,0.02503943]
[1760545215656,0.2256,3995.4,3994.4,2.50349177]
[1760545215657,2.72853084,3995.4,3994.4,2.50349177]
[1760545215856,0.2256,3995.4,3994.5,2.5033798]
[1760545216181,0.2256,3996.0,3993.9,2.50381832]
[1760545216182,0.1248,3995.0,3994.6,0.43863379]
[1760545216364,0.1248,3995.0,3994.7,2.91691689]
[1760545216692,0.2256,3996.0,3994.8,0.43863254]
[1760545216878,2.50225202,3996.4,3994.9,2.50319056]
[1760545217081,0.4743,3996.3,3994.9,1.728]
[1760545217390,0.4743,3996.2,3994.6,0.049]
[1760545217575,0.1248,3995.1,3994.7,0.02503316]
[1760545217755,2.50261833,3995.9,3994.6,0.4626]
[1760545217955,2.50250453,3996.0,3995.1,2.50303328]
[1760545218161,2.50268224,3995.8,3994.6,0.4626]
[1760545218477,0.001,3995.3,3994.8,2.50323755]
[1760545218655,0.001,3995.3,3994.6,0.4626]
[1760545218856,0.1248,3995.0,3994.6,0.049]
[1760545219314,0.001,3995.3,3994.7,0.43863316]
[1760545219706,0.001,3995.3,3995.2,2.5030036]
[1760545219908,0.001,3995.3,3995.2,15.2968523]
[1760545220227,0.001,3995.7,3995.6,4.23075302]
[1760545220589,0.001,3995.7,3995.6,4.64335302]
[1760545220789,0.001,3995.7,3995.6,4.66838055]
[1760545221200,0.001,3995.7,3995.6,4.26729902]
[1760545221517,0.001,3995.7,3995.6,4.90089902]
[1760545221692,0.001,3995.7,3995.6,7.50189902]
[1760545221892,0.001,3995.7,3995.6,4.90089902]
[1760545222118,0.001,3995.7,3995.6,7.50189902]
[1760545223924,0.6999,3998.0,3995.8,8.570903]
[1760545224127,0.6999,3998.0,3995.6,5.3752]
[1760545224128,0.4743,3997.7,3997.0,2.50187523]
[1760545224431,0.4743,3997.7,3997.1,2.50181366]
[1760545224826,0.4743,3997.7,3996.5,0.1196]
[1760545225333,0.4743,3997.7,3997.0,2.5018644]
[1760545225494,0.4743,3997.7,3997.1,2.50178522]
[1760545225694,0.4743,3997.7,3996.6,2.5021268]
[1760545226012,0.4743,3997.7,3997.4,2.50162062]
[1760545226212,0.4743,3997.6,3996.7,2.5020642]
[1760545226528,0.2256,3998.1,3996.7,2.5020642]
[1760545226529,0.2256,3998.1,3997.5,0.1243]
[1760545226749,0.2256,3998.1,3997.1,0.1243]
[1760545227127,0.2256,3998.1,3996.7,4.328]
[1760545227128,0.4743,3998.0,3997.0,2.50184692]
[1760545227328,0.4743,3998.0,3996.3,2.50226298]
[1760545227329,0.4743,3997.9,3995.9,1.728]
[1760545227529,0.4743,3997.9,3995.8,2.62222299]
[1760545227530,2.50174132,3997.3,3995.8,0.1196]
[1760545227734,0.4743,3997.2,3996.7,2.50200581]
[1760545228057,0.4743,3997.2,3996.8,0.02502001]
[1760545228220,0.4743,3997.6,3997.0,2.50182675]
[1760545228421,0.4743,3997.6,3996.1,1.728]
[1760545228617,0.4743,3997.6,3996.2,0.02502377]
[1760545228825,0.4743,3998.0,3996.1,2.1406]
[1760545229018,2.50137841,3997.8,3997.0,2.5018528]
[1760545229259,0.4743,3997.9,3996.3,4.23031464]
[1760545229427,0.4743,3997.9,3996.7,2.5020642]
[1760545229752,0.4743,3997.9,3997.4,2.50157865]
[1760545229957,0.4743,3997.8,3997.4,2.50162451]
[1760545230117,0.4743,3997.8,3997.0,2.50181742]
[1760545230320,0.4743,3997.7,3996.3,4.23029516]
[1760545230646,2.50167141,3997.4,3995.9,1.728]
[1760545230949,2.50175563,3997.2,3996.4,2.50219752]
[1760545231148,0.4743,3997.3,3996.8,2.50199966]
[1760545231554,0.6336,3998.0,3996.7,2.50205114]
[1760545231555,0.4743,3997.2,3996.7,2.50205114]
[1760545231752,0.4743,3997.2,3996.8,2.50199411]
[1760545231928,0.4743,3997.6,3996.7,2.50202232]
[1760545232251,0.2256,3996.8,3996.2,2.50236678]
[1760545232438,0.6999,3996.8,3996.2,2.50232628]
[1760545232643,0.6999,3996.8,3996.3,2.50228388]
[1760545232854,0.2256,3996.8,3996.2,2.50235907]
[1760545233154,0.4743,3996.7,3996.1,2.50243165]
[1760545233457,0.4743,3996.7,3995.4,2.50283638]
[1760545233660,0.4743,3996.7,3996.0,2.50245265]
[1760545234020,0.4743,3996.6,3995.0,0.1196]
[1760545234283,2.50263817,3995.8,3993.9,2.50379676]
[1760545234579,0.6999,3995.7,3995.3,2.50293357]
[1760545234757,0.6999,3995.7,3995.0,2.50311675]
[1760545234758,0.4743,3995.6,3995.0,2.50311675]
[1760545234953,0.4743,3995.6,3994.6,0.049]
[1760545235154,2.97705854,3995.6,3994.9,2.50317385]
[1760545235488,2.97705854,3995.6,3993.9,2.50376931]
[1760545235489,0.4743,3995.5,3993.9,2.50376931]
[1760545235680,2.50293352,3995.4,3994.6,2.50333458]
[1760545235867,2.97713087,3995.5,3995.0,0.002]
[1760545236072,2.50294556,3995.3,3995.0,0.002]
[1760545236266,0.4471,3995.4,3995.0,0.002]
[1760545236448,0.4471,3995.2,3995.0,0.002]
[1760545236644,0.2256,3995.7,3995.0,0.002]
[1760545236858,0.6727,3995.7,3995.0,0.002]
[1760545237063,0.6727,3995.7,3995.1,2.50301454]
[1760545237377,0.1248,3995.1,3995.0,2.50512891]
[1760545237767,0.2319,3995.8,3995.0,0.002]
[1760545238178,0.2319,3995.8,3995.4,2.5028237]
[1760545238379,0.2266,3996.5,3995.1,0.1196]
[1760545238689,0.2266,3996.5,3995.2,0.02503003]
[1760545238985,0.001,3996.5,3996.4,2.50225202]
[1760545239779,0.001,3996.5,3996.4,2.52727454]
[1760545239984,0.001,3996.5,3996.4,2.50225202]
[1760545242532,0.001,3996.5,3996.1,0.1196]
[1760545242688,0.4471,3996.4,3995.1,0.5322]
[1760545243121,0.001,3996.5,3996.3,2.50226714]
[1760545243417,0.001,3996.5,3996.2,2.50236347]
[1760545243822,0.001,3996.5,3995.7,1.728]
[1760545244030,0.001,3996.5,3996.4,2.50225202]
[1760545245526,0.001,3996.5,3995.8,1.728]
[1760545245687,0.001,3996.5,3996.2,2.50232496]
[1760545246317,0.001,3996.5,3996.4,2.50225202]
[1760545247786,0.001,3996.5,3996.4,2.52727454]
[1760545247987,0.001,3996.5,3996.4,2.93987454]
[1760545248216,0.001,3996.5,3996.4,2.91485202]
[1760545248527,0.001,3996.5,3996.4,2.50225202]
[1760545248690,0.001,3996.5,3996.4,4.23025202]
[1760545249239,0.001,3996.5,3996.4,4.64285202]
[1760545249787,0.001,3996.5,3996.4,7.89947454]
[1760545250118,0.001,3996.5,3996.4,7.87445202]
[1760545250497,0.001,3996.5,3996.4,5.27645202]
[1760545250924,0.001,3996.5,3996.4,7.87445202]
[1760545251224,0.001,3996.5,3996.4,22.39019023]
[1760545251392,0.001,3996.5,3996.4,16.06712823]
[1760545251720,0.001,3996.5,3996.4,5.40065023]
[1760545251887,0.001,3996.5,3996.4,8.01566123]
[1760545252094,0.001,3996.5,3996.4,10.61266123]
[1760545252420,0.001,3996.5,3996.4,27.40739223]
[1760545253096,0.001,3996.5,3996.4,12.44049323]
[1760545253420,0.001,3996.5,3996.4,4.64285202]
[1760545253596,0.001,3996.5,3996.4,5.27645202]
[1760545253804,0.001,3996.5,3996.4,7.55396702]
[1760545254413,0.001,3996.5,3996.4,14.60388402]
[1760545254619,0.001,3996.5,3996.4,12.55645202]
[1760545255124,0.001,3996.5,3996.4,10.15026702]
[1760545255322,0.001,3996.5,3996.4,7.28026702]
[1760545255535,0.001,3996.5,3996.4,7.73927902]
[1760545255725,0.001,3996.5,3996.4,10.33627902]
[1760545256019,0.001,3996.5,3996.4,4.86385202]
[1760545256421,0.001,3996.5,3996.4,7.46085202]
[1760545256590,0.001,3996.5,3996.4,4.86385202]
[1760545256819,0.001,3996.5,3996.4,6.82725202]
[1760545257021,0.001,3996.5,3996.4,4.23025202]
[1760545257221,0.001,3996.5,3996.4,2.50225202]
[1760545257758,0.001,3996.5,3996.4,6.82725202]
[1760545257943,0.001,3996.5,3996.4,4.23025202]
[1760545258145,0.001,3996.5,3996.4,5.27645202]
[1760545258351,0.001,3996.5,3996.4,17.48910802]
[1760545258927,0.001,3996.5,3996.4,17.23093802]
[1760545259254,0.001,3996.5,3996.4,19.04327302]
[1760545259430,0.001,3996.5,3996.4,21.63927302]
[1760545259631,0.001,3996.5,3996.4,17.04752602]
[1760545259835,0.001,3996.5,3996.4,12.69453002]
[1760545260062,0.001,3996.5,3996.4,8.24036402]
[1760545260365,0.001,3996.5,3996.4,15.02440402]
[1760545260596,0.001,3996.5,3996.4,24.44731602]
[1760545260769,0.001,3996.5,3996.4,17.80868102]
[1760545260924,0.001,3996.5,3996.4,12.17638002]
[1760545261623,0.001,3996.5,3996.4,17.02443702]
[1760545261829,0.001,3996.5,3996.4,14.42843702]
[1760545262024,0.001,3996.5,3996.4,17.02443702]
[1760545262424,0.001,3996.5,3996.4,14.42843702]
[1760545262629,0.001,3996.5,3996.4,24.77105102]
[1760545262826,0.001,3996.5,3996.4,24.65605002]
[1760545263128,0.001,3996.5,3996.4,20.80771202]
[1760545263461,0.4406,3999.0,3997.1,4.994485]
[1760545263669,0.4406,3999.0,3998.7,2.50081276]
[1760545263963,0.2319,3999.2,3998.7,2.50081276]
[1760545263964,0.6725,3998.8,3998.7,2.50081276]
[1760545264126,0.2319,3998.8,3998.7,2.50081276]
[1760545264357,0.2221,4000.0,3998.7,2.50081276]
[1760545264358,0.2221,4000.0,3999.9,2.5000625]
[1760545264559,0.2221,4000.0,3999.7,2.50012511]
[1760545264560,0.6627,4000.0,3999.7,2.50012511]
[1760545264753,0.1243,3999.8,3998.6,1.728]
[1760545264954,0.1231,3998.7,3998.4,1.728]
[1760545265155,0.1231,3998.7,3998.3,2.50100854]
[1760545265491,0.1231,3998.7,3998.6,2.5008753]
[1760545265658,0.5552,3998.7,3998.0,1.728]
[1760545265860,0.4321,3998.6,3998.0,2.50123647]
[1760545266059,0.4321,3998.5,3995.8,10.58445188]
[1760545266255,0.4321,3998.5,3996.2,2.62002377]
[1760545266492,0.4321,3998.4,3997.7,2.50142144]
[1760545266789,0.2179,3997.8,3997.1,1.728]
[1760545266964,0.4321,3997.7,3996.1,0.1196]